[Event "*** Titled Tuesday Blitz"]
[Site "Chess.com"]
[Date "2020.05.05"]
[Round "1"]
[White "FMOlexandrProhorov"]
[Black "matiss90"]
[Result "0-1"]
[WhiteElo "2051"]
[BlackElo "2490"]
[TimeControl "180+1"]
[EndTime "10:07:53 PDT"]
[Termination "matiss90 won on time"]

1. e4 {[%clk 0:02:56.4]} 1... c5 {[%clk 0:02:59.5]} 2. c3 {[%clk 0:02:55.7]}
2... Nf6 {[%clk 0:02:59.1]} 3. e5 {[%clk 0:02:54.8]} 3... Nd5 {[%clk 0:02:59.1]}
4. g3 {[%clk 0:02:53.3]} 4... Nc6 {[%clk 0:02:49.4]} 5. f4 {[%clk 0:02:15.1]}
5... g5 {[%clk 0:02:45.4]} 6. Bg2 {[%clk 0:02:01.2]} 6... e6 {[%clk 0:02:42.9]}
7. Ne2 {[%clk 0:01:30.6]} 7... gxf4 {[%clk 0:02:39.4]} 8. Bxd5 {[%clk
0:01:29.5]} 8... exd5 {[%clk 0:02:36.9]} 9. Nxf4 {[%clk 0:01:30.2]} 9... d4
{[%clk 0:02:26.9]} 10. Qe2 {[%clk 0:01:27.6]} 10... b6 {[%clk 0:02:20.6]} 11.
O-O {[%clk 0:01:25.8]} 11... Bb7 {[%clk 0:02:17]} 12. Na3 {[%clk 0:01:22.4]}
12... Qe7 {[%clk 0:01:17.9]} 13. Nc4 {[%clk 0:01:19.2]} 13... O-O-O {[%clk
0:01:08]} 14. Nd6+ {[%clk 0:00:52.6]} 14... Kb8 {[%clk 0:01:07.4]} 15. Nxb7
{[%clk 0:00:41.7]} 15... Kxb7 {[%clk 0:01:08.3]} 16. cxd4 {[%clk 0:00:39.9]}
16... Nxd4 {[%clk 0:00:58.5]} 17. Qe4+ {[%clk 0:00:39.3]} 17... Nc6 {[%clk
0:00:49.1]} 18. b4 {[%clk 0:00:20.3]} 18... Qxe5 {[%clk 0:00:45.6]} 19. Qxe5
{[%clk 0:00:19.2]} 19... Nxe5 {[%clk 0:00:46.5]} 20. Bb2 {[%clk 0:00:19.4]}
20... d6 {[%clk 0:00:21]} 21. bxc5 {[%clk 0:00:19.5]} 21... bxc5 {[%clk
0:00:20.4]} 22. d4 {[%clk 0:00:19.7]} 22... cxd4 {[%clk 0:00:20.1]} 23. Bxd4
{[%clk 0:00:18.4]} 23... Rg8 {[%clk 0:00:18.9]} 24. Rab1+ {[%clk 0:00:17.5]}
24... Ka8 {[%clk 0:00:02.7]} 25. Nd5 {[%clk 0:00:16.9]} 25... Rc8 {[%clk
0:00:02.6]} 26. Rfc1 {[%clk 0:00:11]} 26... Nf3+ {[%clk 0:00:02.3]} 27. Kg2
{[%clk 0:00:10]} 27... Rxc1 {[%clk 0:00:02.2]} 28. Rxc1 {[%clk 0:00:04.4]} 28...
Nxd4 {[%clk 0:00:02]} 29. Rc8+ {[%clk 0:00:04.2]} 29... Kb7 {[%clk 0:00:02]} 30.
Re8 {[%clk 0:00:04.2]} 30... Ne6 {[%clk 0:00:02.1]} 31. Nf6 {[%clk 0:00:03.9]}
31... Rg6 {[%clk 0:00:01.9]} 32. Ne4 {[%clk 0:00:02.2]} 32... Kc6 {[%clk
0:00:02.8]} 33. Nc3 {[%clk 0:00:02.1]} 33... Kd7 {[%clk 0:00:03.7]} 34. Ra8
{[%clk 0:00:01.4]} 34... Rf6 {[%clk 0:00:04.6]} 35. Rxa7+ {[%clk 0:00:01.8]}
35... Kc6 {[%clk 0:00:04.7]} 36. Ra6+ {[%clk 0:00:02.1]} 36... Kb7 {[%clk
0:00:04.7]} 37. Ra4 {[%clk 0:00:02]} 37... Rf5 {[%clk 0:00:05.6]} 38. Rb4+
{[%clk 0:00:02.2]} 38... Kc8 {[%clk 0:00:05.1]} 39. Ne4 {[%clk 0:00:02.9]} 39...
Re5 {[%clk 0:00:04.6]} 40. Rc4+ {[%clk 0:00:03.3]} 40... Kd8 {[%clk 0:00:04.4]}
41. Nf6 {[%clk 0:00:03.8]} 41... Ke7 {[%clk 0:00:04.2]} 42. Nxh7 {[%clk
0:00:03.9]} 42... Re2+ {[%clk 0:00:03]} 43. Kh3 {[%clk 0:00:03.4]} 43... Rxa2
{[%clk 0:00:03.9]} 44. Rc8 {[%clk 0:00:02.4]} 44... Bg7 {[%clk 0:00:03]} 0-1

[Event "*** Titled Tuesday Blitz"]
[Site "Chess.com"]
[Date "2020.05.05"]
[Round "1"]
[White "elohunter1999"]
[Black "Kate1606"]
[Result "1/2-1/2"]
[WhiteElo "2495"]
[BlackElo "2107"]
[TimeControl "180+1"]
[EndTime "10:07:54 PDT"]
[Termination "Game drawn by stalemate"]

1. e4 {[%clk 0:02:59.7]} 1... c5 {[%clk 0:03:00.3]} 2. Nf3 {[%clk 0:02:59.3]}
2... g6 {[%clk 0:03:00.8]} 3. d4 {[%clk 0:02:58.9]} 3... cxd4 {[%clk 0:03:01.3]}
4. Nxd4 {[%clk 0:02:59.8]} 4... Nc6 {[%clk 0:03:01.9]} 5. c4 {[%clk 0:02:58.7]}
5... Nf6 {[%clk 0:03:01.2]} 6. Nc3 {[%clk 0:02:57.2]} 6... d6 {[%clk 0:03:01]}
7. f3 {[%clk 0:02:57.3]} 7... Nxd4 {[%clk 0:02:34.3]} 8. Qxd4 {[%clk 0:02:58.2]}
8... Bg7 {[%clk 0:02:34.7]} 9. Be3 {[%clk 0:02:56.8]} 9... O-O {[%clk
0:02:34.3]} 10. Qd2 {[%clk 0:02:55.3]} 10... Be6 {[%clk 0:02:32]} 11. Rc1 {[%clk
0:02:53.3]} 11... Qa5 {[%clk 0:02:27.3]} 12. b3 {[%clk 0:02:42.2]} 12... Rfc8
{[%clk 0:02:24.1]} 13. Bd3 {[%clk 0:02:33.4]} 13... a6 {[%clk 0:02:18.2]} 14.
Ne2 {[%clk 0:02:31.6]} 14... Qxd2+ {[%clk 0:02:15.6]} 15. Kxd2 {[%clk
0:02:32.5]} 15... b5 {[%clk 0:02:10.4]} 16. Nd4 {[%clk 0:02:21.4]} 16... Bd7
{[%clk 0:01:55.2]} 17. cxb5 {[%clk 0:02:03.1]} 17... Rxc1 {[%clk 0:01:55.4]} 18.
Rxc1 {[%clk 0:02:00.9]} 18... axb5 {[%clk 0:01:54.1]} 19. Rc2 {[%clk 0:01:51.6]}
19... b4 {[%clk 0:01:49.9]} 20. Kc1 {[%clk 0:01:28.7]} 20... h5 {[%clk
0:01:24.2]} 21. Kb1 {[%clk 0:01:23.5]} 21... e5 {[%clk 0:01:07.8]} 22. Nc6
{[%clk 0:01:19.8]} 22... Bxc6 {[%clk 0:00:59.3]} 23. Rxc6 {[%clk 0:01:20.7]}
23... d5 {[%clk 0:00:59.6]} 24. Bg5 {[%clk 0:01:07.4]} 24... dxe4 {[%clk
0:00:55]} 25. Bc4 {[%clk 0:00:43.1]} 25... exf3 {[%clk 0:00:47]} 26. gxf3 {[%clk
0:00:44]} 26... Nh7 {[%clk 0:00:45.3]} 27. Rxg6 {[%clk 0:00:43.9]} 27... Nxg5
{[%clk 0:00:42.7]} 28. Rxg5 {[%clk 0:00:44.8]} 28... e4 {[%clk 0:00:33.7]} 29.
fxe4 {[%clk 0:00:41.7]} 29... Re8 {[%clk 0:00:30.6]} 30. Bd5 {[%clk 0:00:39.7]}
30... Rc8 {[%clk 0:00:30.9]} 31. Rxh5 {[%clk 0:00:38.8]} 31... Rc3 {[%clk
0:00:29.8]} 32. Rf5 {[%clk 0:00:38.3]} 32... Re3 {[%clk 0:00:25.1]} 33. Rxf7
{[%clk 0:00:36.4]} 33... Kh8 {[%clk 0:00:15.7]} 34. Rf2 {[%clk 0:00:35.2]} 34...
Re1+ {[%clk 0:00:15.7]} 35. Kc2 {[%clk 0:00:35.2]} 35... Ra1 {[%clk 0:00:14.4]}
36. Kd3 {[%clk 0:00:34.6]} 36... Rd1+ {[%clk 0:00:14.4]} 37. Kc4 {[%clk
0:00:34.6]} 37... Bc3 {[%clk 0:00:14.7]} 38. a4 {[%clk 0:00:30.5]} 38... Be1
{[%clk 0:00:13.1]} 39. Rc2 {[%clk 0:00:27.3]} 39... Bc3 {[%clk 0:00:10.9]} 40.
a5 {[%clk 0:00:26.9]} 40... Ra1 {[%clk 0:00:09.9]} 41. Kb5 {[%clk 0:00:26.7]}
41... Kg7 {[%clk 0:00:09.5]} 42. a6 {[%clk 0:00:26.7]} 42... Kf6 {[%clk
0:00:09.6]} 43. Kb6 {[%clk 0:00:24.9]} 43... Bd4+ {[%clk 0:00:09.7]} 44. Kb7
{[%clk 0:00:25]} 44... Ke5 {[%clk 0:00:09.8]} 45. Rc4 {[%clk 0:00:24.2]} 45...
Bf2 {[%clk 0:00:08.7]} 46. Rxb4 {[%clk 0:00:23.7]} 46... Ra2 {[%clk 0:00:08.9]}
47. Rb6 {[%clk 0:00:23.2]} 47... Bxb6 {[%clk 0:00:08.7]} 48. Kxb6 {[%clk
0:00:23.5]} 48... Kd4 {[%clk 0:00:08.3]} 49. a7 {[%clk 0:00:23.6]} 49... Kc3
{[%clk 0:00:08.8]} 50. a8=Q {[%clk 0:00:22]} 50... Rxa8 {[%clk 0:00:08]} 51.
Bxa8 {[%clk 0:00:22.9]} 51... Kd4 {[%clk 0:00:08.6]} 52. Bd5 {[%clk 0:00:22.8]}
52... Ke5 {[%clk 0:00:09.5]} 53. h4 {[%clk 0:00:23.4]} 53... Kf4 {[%clk
0:00:10.4]} 54. Kc5 {[%clk 0:00:23.7]} 54... Kg4 {[%clk 0:00:11]} 55. b4 {[%clk
0:00:24.6]} 55... Kxh4 {[%clk 0:00:11.9]} 56. b5 {[%clk 0:00:25.4]} 56... Kg4
{[%clk 0:00:12.7]} 57. b6 {[%clk 0:00:26.3]} 57... Kf4 {[%clk 0:00:13.6]} 58. b7
{[%clk 0:00:26.7]} 58... Ke3 {[%clk 0:00:14.5]} 59. b8=Q {[%clk 0:00:27.6]}
59... Kf2 {[%clk 0:00:15.4]} 60. Qf4+ {[%clk 0:00:25.9]} 60... Kg1 {[%clk
0:00:16.3]} 61. e5 {[%clk 0:00:26.3]} 1/2-1/2

[Event "*** Titled Tuesday Blitz"]
[Site "Chess.com"]
[Date "2020.05.05"]
[Round "1"]
[White "fish7728"]
[Black "lupta_robin"]
[Result "0-1"]
[WhiteElo "2064"]
[BlackElo "2495"]
[TimeControl "180+1"]
[EndTime "10:07:54 PDT"]
[Termination "lupta_robin won on time"]

1. d4 {[%clk 0:02:38.5]} 1... d5 {[%clk 0:02:58.8]} 2. c4 {[%clk 0:02:38.7]}
2... Nc6 {[%clk 0:02:58.9]} 3. e3 {[%clk 0:02:37.5]} 3... e5 {[%clk 0:02:51.5]}
4. cxd5 {[%clk 0:02:37.2]} 4... Qxd5 {[%clk 0:02:51.3]} 5. Nc3 {[%clk
0:02:37.1]} 5... Bb4 {[%clk 0:02:50.7]} 6. Bd2 {[%clk 0:02:32.7]} 6... Bxc3
{[%clk 0:02:50.1]} 7. bxc3 {[%clk 0:02:31.7]} 7... Nf6 {[%clk 0:02:48.6]} 8. c4
{[%clk 0:02:25.9]} 8... Qd6 {[%clk 0:02:47.4]} 9. d5 {[%clk 0:02:25.7]} 9... Nb8
{[%clk 0:02:46.4]} 10. Nf3 {[%clk 0:02:24.9]} 10... Na6 {[%clk 0:02:41.6]} 11.
Be2 {[%clk 0:02:23.9]} 11... O-O {[%clk 0:02:36.5]} 12. O-O {[%clk 0:02:23]}
12... Nc5 {[%clk 0:02:32.1]} 13. Bc3 {[%clk 0:02:17.7]} 13... Re8 {[%clk
0:02:31.2]} 14. Qc2 {[%clk 0:02:11.8]} 14... b6 {[%clk 0:02:23.4]} 15. Nd2
{[%clk 0:02:03.2]} 15... a5 {[%clk 0:02:19.3]} 16. e4 {[%clk 0:02:00.4]} 16...
Bg4 {[%clk 0:02:11.3]} 17. f3 {[%clk 0:01:48.4]} 17... Bd7 {[%clk 0:02:09.2]}
18. Rfe1 {[%clk 0:01:41.1]} 18... Nh5 {[%clk 0:02:08.2]} 19. Nf1 {[%clk
0:01:37.9]} 19... Nf4 {[%clk 0:02:05.2]} 20. Ne3 {[%clk 0:01:36.8]} 20... Qg6
{[%clk 0:01:48.8]} 21. Kh1 {[%clk 0:01:18.1]} 21... h5 {[%clk 0:01:38.5]} 22.
Bf1 {[%clk 0:01:16.9]} 22... h4 {[%clk 0:01:36.6]} 23. Rac1 {[%clk 0:00:52.4]}
23... Qg5 {[%clk 0:01:19.8]} 24. Qd2 {[%clk 0:00:39.5]} 24... Rad8 {[%clk
0:01:05.1]} 25. Rcd1 {[%clk 0:00:30.8]} 25... Bc8 {[%clk 0:01:02.2]} 26. Qf2
{[%clk 0:00:23.1]} 26... Rd6 {[%clk 0:01:01]} 27. g4 {[%clk 0:00:14.5]} 27...
hxg3 {[%clk 0:00:58.9]} 28. hxg3 {[%clk 0:00:09.8]} 28... Rh6+ {[%clk
0:00:57.1]} 29. Kg1 {[%clk 0:00:09.8]} 29... Nh5 {[%clk 0:00:46.7]} 30. g4
{[%clk 0:00:04.5]} 30... Nf4 {[%clk 0:00:44.4]} 31. Qg3 {[%clk 0:00:03.7]} 31...
f6 {[%clk 0:00:28]} 32. Kf2 {[%clk 0:00:03.8]} 32... Kf7 {[%clk 0:00:25.9]} 33.
Ng2 {[%clk 0:00:03.4]} 33... Nh3+ {[%clk 0:00:21]} 34. Ke2 {[%clk 0:00:03]}
34... Nxe4 {[%clk 0:00:18.4]} 35. fxe4 {[%clk 0:00:03]} 35... Bxg4+ {[%clk
0:00:18.7]} 36. Kd3 {[%clk 0:00:02.7]} 36... Bxd1 {[%clk 0:00:12.4]} 37. Qxg5
{[%clk 0:00:02.2]} 37... fxg5 {[%clk 0:00:12.3]} 38. Rxd1 {[%clk 0:00:03.1]}
38... Nf2+ {[%clk 0:00:11]} 39. Ke2 {[%clk 0:00:02.9]} 39... Nxd1 {[%clk
0:00:11.4]} 40. Kxd1 {[%clk 0:00:03.8]} 40... Rh1 {[%clk 0:00:10.9]} 41. Ne3
{[%clk 0:00:03.6]} 41... Kf6 {[%clk 0:00:10.3]} 42. Ke2 {[%clk 0:00:03.6]} 42...
Rh4 {[%clk 0:00:09.3]} 43. Nf5 {[%clk 0:00:03.5]} 43... Rxe4+ {[%clk 0:00:09.1]}
44. Kd3 {[%clk 0:00:03.4]} 44... Kxf5 {[%clk 0:00:08.8]} 45. Bh3+ {[%clk
0:00:03.6]} 45... g4 {[%clk 0:00:08.6]} 46. Bg2 {[%clk 0:00:03.9]} 46... Rf4
{[%clk 0:00:08.8]} 47. Bd2 {[%clk 0:00:03.8]} 47... e4+ {[%clk 0:00:09]} 48. Kd4
{[%clk 0:00:03.9]} 48... e3+ {[%clk 0:00:08.9]} 0-1

[Event "*** Titled Tuesday Blitz"]
[Site "Chess.com"]
[Date "2020.05.05"]
[Round "1"]
[White "annamaja"]
[Black "SoltaniciR"]
[Result "1-0"]
[WhiteElo "2307"]
[BlackElo "2597"]
[TimeControl "180+1"]
[EndTime "10:07:55 PDT"]
[Termination "annamaja won on time"]

1. e4 {[%clk 0:03:00.9]} 1... c5 {[%clk 0:02:59.4]} 2. Nf3 {[%clk 0:03:01]} 2...
d6 {[%clk 0:02:59.4]} 3. d4 {[%clk 0:03:01.4]} 3... cxd4 {[%clk 0:02:59.6]} 4.
Nxd4 {[%clk 0:03:02.3]} 4... Nf6 {[%clk 0:02:59.7]} 5. Nc3 {[%clk 0:03:02.7]}
5... a6 {[%clk 0:03:00.1]} 6. g3 {[%clk 0:03:03.2]} 6... e6 {[%clk 0:02:55.4]}
7. Bg2 {[%clk 0:03:03.1]} 7... Nc6 {[%clk 0:02:56]} 8. O-O {[%clk 0:03:03.8]}
8... Bd7 {[%clk 0:02:56.3]} 9. Be3 {[%clk 0:03:01.4]} 9... Be7 {[%clk
0:02:45.7]} 10. a4 {[%clk 0:02:59.7]} 10... Qc7 {[%clk 0:02:36.4]} 11. f4 {[%clk
0:02:50.5]} 11... Na5 {[%clk 0:02:30.7]} 12. Qd3 {[%clk 0:02:04]} 12... Nc4
{[%clk 0:02:28.2]} 13. Bc1 {[%clk 0:02:04]} 13... Rc8 {[%clk 0:02:18.5]} 14. b3
{[%clk 0:01:59.6]} 14... Na5 {[%clk 0:02:16.2]} 15. Bb2 {[%clk 0:01:50.3]} 15...
O-O {[%clk 0:02:15.4]} 16. Kh1 {[%clk 0:01:47.8]} 16... Nc6 {[%clk 0:02:10]} 17.
Nxc6 {[%clk 0:01:39.7]} 17... Bxc6 {[%clk 0:02:09.6]} 18. f5 {[%clk 0:01:36]}
18... Rfe8 {[%clk 0:01:53]} 19. fxe6 {[%clk 0:01:31.5]} 19... fxe6 {[%clk
0:01:52.7]} 20. Ne2 {[%clk 0:01:18]} 20... b5 {[%clk 0:00:49.6]} 21. axb5 {[%clk
0:01:12.7]} 21... axb5 {[%clk 0:00:46.4]} 22. Nd4 {[%clk 0:00:57.8]} 22... e5
{[%clk 0:00:46.4]} 23. Nf5 {[%clk 0:00:41.5]} 23... Bb7 {[%clk 0:00:28.4]} 24.
Nxe7+ {[%clk 0:00:28.3]} 24... Rxe7 {[%clk 0:00:09.5]} 25. Rf2 {[%clk
0:00:28.7]} 25... b4 {[%clk 0:00:07.3]} 26. Rd1 {[%clk 0:00:24.8]} 26... Rd7
{[%clk 0:00:05.7]} 27. Bh3 {[%clk 0:00:24.8]} 27... Bxe4+ {[%clk 0:00:03.5]} 28.
Qxe4 {[%clk 0:00:14.6]} 28... Nxe4 {[%clk 0:00:04.4]} 29. Be6+ {[%clk
0:00:14.9]} 29... Kh8 {[%clk 0:00:03.7]} 30. Rf3 {[%clk 0:00:13.7]} 30... Rdd8
{[%clk 0:00:03.8]} 31. Bxc8 {[%clk 0:00:13]} 31... Rxc8 {[%clk 0:00:02.9]} 32.
Rdf1 {[%clk 0:00:13.9]} 32... Nf6 {[%clk 0:00:03.2]} 33. g4 {[%clk 0:00:13.4]}
33... Qc6 {[%clk 0:00:03.7]} 34. g5 {[%clk 0:00:14]} 34... Nh5 {[%clk
0:00:03.9]} 35. Kg1 {[%clk 0:00:14]} 35... Nf4 {[%clk 0:00:04.8]} 36. Bc1 {[%clk
0:00:14]} 36... Qc5+ {[%clk 0:00:04.4]} 37. Kh1 {[%clk 0:00:13.8]} 37... Qxc2
{[%clk 0:00:04.8]} 38. Bxf4 {[%clk 0:00:14]} 38... exf4 {[%clk 0:00:05.2]} 39.
Rxf4 {[%clk 0:00:14.7]} 39... Kg8 {[%clk 0:00:05.8]} 40. h4 {[%clk 0:00:13.5]}
40... Qxb3 {[%clk 0:00:05.7]} 41. Rf5 {[%clk 0:00:13]} 41... Qh3+ {[%clk
0:00:05.9]} 42. Kg1 {[%clk 0:00:13.2]} 42... Qg4+ {[%clk 0:00:06.5]} 43. Kh2
{[%clk 0:00:11.9]} 43... Qxh4+ {[%clk 0:00:07.4]} 44. Kg1 {[%clk 0:00:12.5]}
44... Qg4+ {[%clk 0:00:07.5]} 45. Kh1 {[%clk 0:00:12.7]} 45... b3 {[%clk
0:00:08.4]} 46. g6 {[%clk 0:00:11.4]} 46... hxg6 {[%clk 0:00:08]} 47. Rb5 {[%clk
0:00:10.4]} 47... Qe4+ {[%clk 0:00:02]} 48. Kg1 {[%clk 0:00:10.1]} 1-0

[Event "*** Titled Tuesday Blitz"]
[Site "Chess.com"]
[Date "2020.05.05"]
[Round "1"]
[White "Nikolaj_6"]
[Black "RobPeresian"]
[Result "1-0"]
[WhiteElo "2607"]
[BlackElo "2286"]
[TimeControl "180+1"]
[EndTime "10:07:55 PDT"]
[Termination "Nikolaj_6 won on time"]

1. e4 {[%clk 0:03:00.9]} 1... e5 {[%clk 0:02:53]} 2. Nf3 {[%clk 0:03:00.3]} 2...
Nc6 {[%clk 0:02:51.2]} 3. Bb5 {[%clk 0:02:59.7]} 3... Nf6 {[%clk 0:02:50.5]} 4.
d3 {[%clk 0:02:58.9]} 4... Bc5 {[%clk 0:02:48.8]} 5. c3 {[%clk 0:02:57.9]} 5...
d6 {[%clk 0:02:48.1]} 6. O-O {[%clk 0:02:57.2]} 6... O-O {[%clk 0:02:46]} 7. Bg5
{[%clk 0:02:56.3]} 7... h6 {[%clk 0:02:45.3]} 8. Bh4 {[%clk 0:02:56.2]} 8... Bd7
{[%clk 0:02:32.2]} 9. Ba4 {[%clk 0:02:53.6]} 9... Re8 {[%clk 0:02:21.2]} 10.
Nbd2 {[%clk 0:02:52.1]} 10... Qe7 {[%clk 0:02:04]} 11. b4 {[%clk 0:02:49.9]}
11... Bb6 {[%clk 0:02:03.5]} 12. Nc4 {[%clk 0:02:49.6]} 12... g5 {[%clk
0:01:43.9]} 13. Bg3 {[%clk 0:02:43.1]} 13... Bg4 {[%clk 0:01:37.5]} 14. Ne3
{[%clk 0:02:39.2]} 14... Be6 {[%clk 0:01:12.2]} 15. Bb3 {[%clk 0:02:28.9]} 15...
Ng4 {[%clk 0:00:44.7]} 16. Bxe6 {[%clk 0:02:17.6]} 16... Qxe6 {[%clk 0:00:39.4]}
17. Nf5 {[%clk 0:02:11]} 17... Qg6 {[%clk 0:00:27.6]} 18. Nd2 {[%clk 0:01:58.4]}
18... h5 {[%clk 0:00:25.5]} 19. Nc4 {[%clk 0:01:51.2]} 19... Nh6 {[%clk
0:00:24.6]} 20. Nxh6+ {[%clk 0:01:45.3]} 20... Qxh6 {[%clk 0:00:24.3]} 21. h3
{[%clk 0:01:45.1]} 21... Ne7 {[%clk 0:00:22.5]} 22. a4 {[%clk 0:01:44]} 22... c6
{[%clk 0:00:19.7]} 23. Kh1 {[%clk 0:01:38.7]} 23... Ng6 {[%clk 0:00:16.8]} 24.
Nxd6 {[%clk 0:01:36.2]} 24... Nf4 {[%clk 0:00:08]} 25. Nxe8 {[%clk 0:01:32.1]}
25... Rxe8 {[%clk 0:00:07.7]} 26. Bxf4 {[%clk 0:01:31.9]} 26... gxf4 {[%clk
0:00:07.3]} 27. Qf3 {[%clk 0:01:30.4]} 27... Kh7 {[%clk 0:00:06.8]} 28. a5
{[%clk 0:01:27.3]} 28... Bc7 {[%clk 0:00:06.6]} 29. d4 {[%clk 0:01:20.4]} 29...
exd4 {[%clk 0:00:03.2]} 30. cxd4 {[%clk 0:01:20.2]} 30... Qg6 {[%clk 0:00:02.4]}
31. Rfe1 {[%clk 0:01:14.9]} 31... Bd6 {[%clk 0:00:02.5]} 32. Rab1 {[%clk
0:01:13.2]} 32... Rg8 {[%clk 0:00:02.5]} 33. e5 {[%clk 0:01:08.1]} 33... Be7
{[%clk 0:00:02.6]} 34. Qe4 {[%clk 0:01:07.5]} 34... a6 {[%clk 0:00:02.2]} 35.
Qxg6+ {[%clk 0:01:06.8]} 35... fxg6 {[%clk 0:00:02.7]} 36. g3 {[%clk 0:00:55.8]}
36... fxg3 {[%clk 0:00:02.6]} 37. fxg3 {[%clk 0:00:55.8]} 37... Kg7 {[%clk
0:00:02.9]} 38. Kg2 {[%clk 0:00:54]} 38... Rd8 {[%clk 0:00:03.4]} 39. Red1
{[%clk 0:00:51.8]} 39... Rd5 {[%clk 0:00:04]} 40. Kf3 {[%clk 0:00:52]} 40... Kf7
{[%clk 0:00:04.1]} 41. Ke4 {[%clk 0:00:52.1]} 41... Ke6 {[%clk 0:00:04.7]} 42.
g4 {[%clk 0:00:50.4]} 42... Rb5 {[%clk 0:00:05]} 43. gxh5 {[%clk 0:00:49.2]}
43... gxh5 {[%clk 0:00:05.6]} 44. Rg1 {[%clk 0:00:49.1]} 44... h4 {[%clk
0:00:05.6]} 45. Rg6+ {[%clk 0:00:48.8]} 45... Kd7 {[%clk 0:00:05.6]} 46. Rh6
{[%clk 0:00:44.1]} 46... b6 {[%clk 0:00:03.8]} 47. axb6 {[%clk 0:00:43]} 47...
Rxb6 {[%clk 0:00:04.4]} 48. Rh7 {[%clk 0:00:35.5]} 48... a5 {[%clk 0:00:03.6]}
49. Rg1 {[%clk 0:00:34.4]} 49... Ke6 {[%clk 0:00:01.2]} 50. Rg6+ {[%clk
0:00:34]} 1-0

[Event "*** Titled Tuesday Blitz"]
[Site "Chess.com"]
[Date "2020.05.05"]
[Round "1"]
[White "Gubajdullin"]
[Black "norwaytoadog"]
[Result "1-0"]
[WhiteElo "2528"]
[BlackElo "2169"]
[TimeControl "180+1"]
[EndTime "10:07:55 PDT"]
[Termination "Gubajdullin won on time"]

1. d4 {[%clk 0:03:00.8]} 1... d5 {[%clk 0:02:58]} 2. Bf4 {[%clk 0:02:59.5]} 2...
c5 {[%clk 0:02:57.6]} 3. e3 {[%clk 0:02:59]} 3... Nc6 {[%clk 0:02:57.3]} 4. c3
{[%clk 0:02:58.5]} 4... Bf5 {[%clk 0:02:56.6]} 5. Qb3 {[%clk 0:02:57.4]} 5...
Qb6 {[%clk 0:02:41.8]} 6. dxc5 {[%clk 0:02:55.4]} 6... Qxb3 {[%clk 0:02:37.6]}
7. axb3 {[%clk 0:02:54.4]} 7... e5 {[%clk 0:02:37.4]} 8. Bg3 {[%clk 0:02:53.4]}
8... Bxc5 {[%clk 0:02:36.8]} 9. b4 {[%clk 0:02:47.4]} 9... Bd6 {[%clk
0:02:15.7]} 10. Nf3 {[%clk 0:02:32.4]} 10... f6 {[%clk 0:02:12.1]} 11. Nd4
{[%clk 0:02:32.2]} 11... Bd7 {[%clk 0:01:44.5]} 12. Na3 {[%clk 0:02:31.1]} 12...
Nge7 {[%clk 0:01:31.3]} 13. Nb3 {[%clk 0:02:15.2]} 13... Nf5 {[%clk 0:01:27.1]}
14. Rd1 {[%clk 0:02:01]} 14... Nxg3 {[%clk 0:01:21.7]} 15. hxg3 {[%clk
0:02:00.2]} 15... Ne7 {[%clk 0:01:19.6]} 16. Bb5 {[%clk 0:01:57.9]} 16... a6
{[%clk 0:01:02.4]} 17. Bxd7+ {[%clk 0:01:57]} 17... Kxd7 {[%clk 0:01:02.8]} 18.
e4 {[%clk 0:01:56.7]} 18... Ke6 {[%clk 0:00:55.7]} 19. exd5+ {[%clk 0:01:50.2]}
19... Nxd5 {[%clk 0:00:55.8]} 20. Nc4 {[%clk 0:01:49.6]} 20... Be7 {[%clk
0:00:49.5]} 21. Rxd5 {[%clk 0:01:43.3]} 21... Kxd5 {[%clk 0:00:48.8]} 22. Nb6+
{[%clk 0:01:43.2]} 22... Ke6 {[%clk 0:00:41.7]} 23. Nxa8 {[%clk 0:01:42.9]}
23... Rxa8 {[%clk 0:00:41.5]} 24. Rxh7 {[%clk 0:01:43]} 24... g5 {[%clk
0:00:35.9]} 25. Nc5+ {[%clk 0:01:30.5]} 25... Bxc5 {[%clk 0:00:30.7]} 26. bxc5
{[%clk 0:01:30.1]} 26... Rb8 {[%clk 0:00:28.1]} 27. Rc7 {[%clk 0:01:21.2]} 27...
Kd5 {[%clk 0:00:24.2]} 28. Kd2 {[%clk 0:01:17.2]} 28... Kc4 {[%clk 0:00:22.1]}
29. Kc2 {[%clk 0:01:15.7]} 29... a5 {[%clk 0:00:18.9]} 30. b3+ {[%clk
0:01:07.8]} 30... Kd5 {[%clk 0:00:17.8]} 31. Kd3 {[%clk 0:00:59.8]} 31... Rh8
{[%clk 0:00:13.8]} 32. c4+ {[%clk 0:00:56.9]} 32... Ke6 {[%clk 0:00:14.2]} 33.
Rxb7 {[%clk 0:00:56.5]} 33... Rh2 {[%clk 0:00:12.8]} 34. Rb6+ {[%clk 0:00:48.1]}
34... Ke7 {[%clk 0:00:12.6]} 35. Ra6 {[%clk 0:00:42.8]} 35... Rxg2 {[%clk
0:00:12.2]} 36. Ke3 {[%clk 0:00:41.4]} 36... f5 {[%clk 0:00:11.3]} 37. Rxa5
{[%clk 0:00:40.2]} 37... f4+ {[%clk 0:00:10.6]} 38. gxf4 {[%clk 0:00:40.1]}
38... exf4+ {[%clk 0:00:10.4]} 39. Kf3 {[%clk 0:00:39.8]} 39... Rh2 {[%clk
0:00:10.4]} 40. Ra7+ {[%clk 0:00:36.7]} 40... Kd8 {[%clk 0:00:09.2]} 41. b4
{[%clk 0:00:35.6]} 41... Rh3+ {[%clk 0:00:08.5]} 42. Ke4 {[%clk 0:00:35.5]}
42... Rc3 {[%clk 0:00:08.3]} 43. Kd5 {[%clk 0:00:34.9]} 43... Rd3+ {[%clk
0:00:07.4]} 44. Kc6 {[%clk 0:00:31.1]} 44... g4 {[%clk 0:00:07.2]} 45. b5 {[%clk
0:00:30.2]} 45... g3 {[%clk 0:00:07.2]} 46. fxg3 {[%clk 0:00:29.4]} 46... fxg3
{[%clk 0:00:07]} 47. b6 {[%clk 0:00:26.8]} 47... g2 {[%clk 0:00:06.3]} 48. Rg7
{[%clk 0:00:25.9]} 48... Rb3 {[%clk 0:00:01.6]} 49. Rg8+ {[%clk 0:00:24.8]}
49... Ke7 {[%clk 0:00:01.4]} 50. Rxg2 {[%clk 0:00:23.4]} 1-0